Cogmind - Beta 16.1 @@@ ROGUE MODE // 2026.03.31 @ 21:28:15 Player: Thqwib-Linux Result: Self-destructed Performance ------------- Evolutions (3) 1500 Regions Visited (10) 2000 Robots Destroyed (93) 465 Value Destroyed (3217) 3217 Prototype IDs (47) 940 Alien Tech Used (0) 0 Bonus (819) 819 TOTAL SCORE: 8941 Bonus ------- High Alert Combat Kills 91 Follower Combat Kills 342 Aligned with FarCom 300 Met Data Miner 300 Friendly Fire -214 Cogmind --------- Core Integrity 142/700 Matter 91/300 Energy 239/350 System Corruption 15% Temperature Danger (410) Movement Treading (305) Ox2 Location -6/Proximity Caves Parts ------- > --- POWER (1) -------- Cooled Fission Core > --- PROPULSION (4) --- Advanced Treads > --- UTILITY (5) ------ Large Storage Unit Armor Integrity Analyzer Hardened Light Armor Plating Graphene Brace > --- WEAPON (3) ------- Improved KE Penetrator Improved KE Penetrator > --- INVENTORY (15) --- Cold Fusion Reactor Machine Analyzer Advanced Terrain Scan Processor Hardened Light Armor Plating Heart of Steel Heavy Ion Cannon Cooled Plasma Cannon Improved KE Penetrator Improved KE Penetrator Power Maul PL-3XN's Ring of Power Peak State ------------ > --- POWER ------------ Cooled Fission Core > --- PROPULSION ------- Advanced Treads Advanced Treads Medium Treads Medium Treads > --- UTILITY ---------- Large Storage Unit Armor Integrity Analyzer Improved Weapon Shielding Hardened Light Armor Plating Graphene Brace > --- WEAPON ----------- Improved KE Penetrator Improved KE Penetrator Improved KE Penetrator > --- INVENTORY -------- Cold Fusion Reactor Medium Treads Machine Analyzer Advanced Terrain Scan Processor Hardened Light Armor Plating Heart of Steel Heavy Ion Cannon Cooled Plasma Cannon Improved KE Penetrator Improved KE Penetrator Rocket Launcher Power Maul PL-3XN's Ring of Power [Rating: 67] Favorites ----------- Power Ion Engine Engine Ion Engine Power Core Cooled Fission Core Propulsion Light Treads Treads Light Treads Leg Aluminum Leg Wheel Compact Wheel Utility Large Storage Unit Device Heat Sink Storage Large Storage Unit Processor Armor Integrity Analyzer Protection Hardened Medium Armor Plating Weapon Improved KE Penetrator Energy Gun Medium Laser Energy Cannon Cooled Plasma Cannon Ballistic Gun Improved KE Penetrator Ballistic Cannon Advanced Assault Cannon Launcher Rocket Launcher Special Weapon Field Lobotomy Kit Build | -11 -10 -10 -10 -9 -8 -7 -7 -7 -7 -6 ------- Run | Yrd Mat Min Exi Min Mat Fac Low Low Dat Pro Slots Evolved 6 | . . . . . 4 2 . . . . Power . | . . . . . . . . . . . Propulsion 2 | . . . . . 2 . . . . . Utility 3 | . . . . . 1 2 . . . . Weapon 1 | . . . . . 1 . . . . . Parts Attached 80 | 4 12 8 . . 7 38 6 4 . 1 Power 8 | . 1 2 . . 2 3 . . . . Engine 5 | . 1 2 . . 2 . . . . . Core 3 | . . . . . . 3 . . . . Reactor . | . . . . . . . . . . . Propulsion 22 | 2 5 1 . . 1 10 2 1 . . Treads 17 | 2 5 1 . . 1 5 2 1 . . Leg . | . . . . . . . . . . . Wheel 5 | . . . . . . 5 . . . . Hover . | . . . . . . . . . . . Flight . | . . . . . . . . . . . Utility 25 | 1 3 1 . . 1 14 3 2 . . Device 11 | 1 1 . . . . 8 . 1 . . Storage 2 | . 2 . . . . . . . . . Processor 3 | . . . . . . 1 2 . . . Hackware . | . . . . . . . . . . . Protection 9 | . . 1 . . 1 5 1 1 . . Artifact . | . . . . . . . . . . . Weapon 25 | 1 3 4 . . 3 11 1 1 . 1 Energy Gun 2 | 1 . . . . . 1 . . . . Energy Cannon 4 | . . . . . 1 2 1 . . . Ballistic Gun 16 | . 3 4 . . 1 6 . 1 . 1 Ballistic Cannon 1 | . . . . . . 1 . . . . Launcher 1 | . . . . . 1 . . . . . Special Weapon 1 | . . . . . . 1 . . . . Impact Weapon . | . . . . . . . . . . . Slashing Weapon . | . . . . . . . . . . . Piercing Weapon . | . . . . . . . . . . . Special Melee Weapon . | . . . . . . . . . . . Unidentified Prototypes 5 | . . . . . 1 4 . . . . Parts Lost 36 | . 2 7 . . 1 15 3 2 . 6 Power 3 | . 1 2 . . . . . . . . Propulsion 16 | . . 1 . . 1 9 1 1 . 3 Utility 8 | . . . . . . 5 1 1 . 1 Weapon 9 | . 1 4 . . . 1 1 . . 2 Highest Loss Streak 6 | . 1 3 . . 1 6 2 1 . 6 To Critical Strikes 1 | . . . . . . 1 . . . . Average Backups 9 | 1 7 5 4 5 5 12 11 11 12 10 Power 1 | 1 1 1 1 1 1 1 1 1 1 1 Propulsion . | . 1 1 1 1 . . . . . . Utility 2 | . 1 2 2 2 2 4 2 3 3 3 Weapon 3 | . 3 . . . 1 4 6 6 7 5 Tool/Special . | . . . . . . . . . . . Unused Backups 32 | 11 3 1 . . 2 5 3 1 . 6 Power 8 | 1 1 1 . . 2 2 . . . 1 Propulsion 8 | 6 . . . . . . 1 1 . . Utility 5 | 1 1 . . . . . 1 . . 2 Weapon 10 | 3 1 . . . . 3 1 . . 2 Tool/Special 1 | . . . . . . . . . . 1 Average Slot Usage (%) 95 | . 99 98 100 100 87 96 88 99 78 86 Engine 6 | . 14 13 14 14 9 2 . . . . Core 2 | . . . . . . 4 7 7 7 7 Treads 25 | . 27 27 28 28 27 21 23 29 30 25 Wheel 1 | . . . . . . 6 . . . . Device 13 | . 14 11 . . 8 19 16 7 7 7 Storage 9 | . 14 14 14 14 9 7 7 7 7 7 Processor 1 | . . . . . . . 4 7 7 7 Protection 6 | . . 2 14 14 9 7 3 14 15 9 Energy Gun 1 | . 6 . . . . . . . . . Energy Cannon 2 | . . . . . 6 4 8 . . . Ballistic Gun 19 | . 21 27 28 28 17 16 13 22 2 15 Peak Build Rating 67 | 7 8 8 8 8 22 57 65 67 60 66 Average Rating 29 | 6 7 6 7 8 14 36 57 65 47 57 On Entrance 28 | 6 7 8 7 8 8 21 56 65 66 60 Avg Prop Armor Cover (%) 7 | . . . . . . 7 . . . . Naked Turns . | . . . . . . . . . . . Heaviest Build 76 | 14 30 31 31 31 42 76 64 60 54 . Greatest Support 100 | 40 40 40 40 40 82 82 92 100 100 . Greatest Overweight (x) 13 | . . . . . . 13 1 . . . Average Overweight (x) . | . . . . . . . . . . . Largest Inventory Capacity 15 | 8 15 15 15 15 15 15 15 15 15 15 Average Capacity 14 | 8 14 15 15 15 15 15 15 15 15 15 Most Carried 15 | 8 12 10 5 6 9 15 15 15 15 14 Average Carried 9 | 1 7 5 4 5 5 12 12 14 15 13 Final Capacity 15 | 8 15 15 15 15 15 15 15 15 15 15 Final Carried 15 | 1 10 4 5 6 9 12 15 14 15 13 Class Distribution -------------------- 41% | Mutant 26% | Scavenger-Tank 8% | Derelict-Gunner 8% | Derelict-Tank 5% | Skirmisher 3% | Tank Dominant Class ---------------- Mutant | -10/Materials Mutant | -10/Mines Mutant | -10/Exiles Mutant | -9/Mines Skirmisher | -8/Materials Scavenger-Tank | -7/Factory Derelict-Gunner | -7/Lower Caves Derelict-Tank | -7/Lower Caves Derelict-Mutant | -7/Data Miner Derelict-Mutant | -6/Proximity Caves Resources | -11 -10 -10 -10 -9 -8 -7 -7 -7 -7 -6 ----------- Run | Yrd Mat Min Exi Min Mat Fac Low Low Dat Pro Matter Collected 3147 | 240 340 368 . . 210 1395 288 306 . . Remotely . | . . . . . . . . . . . Salvage Created 3549 | 41 710 377 . . 258 1523 312 189 . 139 Parts 190 | 9 42 18 . . 11 87 11 7 . 5 Haulers Intercepted 4 | . 2 . . . 1 1 . . . . Recyclers Shooed 3 | . . . . . 1 2 . . . . Parts Field Recycled . | . . . . . . . . . . . Retrieved Matter . | . . . . . . . . . . . Parts Self-Destructed 20 | . . . . . . . 11 8 . 1 Prevented . | . . . . . . . . . . . Parts Restored . | . . . . . . . . . . . Kills | -11 -10 -10 -10 -9 -8 -7 -7 -7 -7 -6 ------- Run | Yrd Mat Min Exi Min Mat Fac Low Low Dat Pro Combat Hostiles Destroyed 72 | . 15 10 . . 3 28 4 8 . 4 Guns 50 | . 15 10 . . 1 15 . 8 . 1 Cannons 13 | . . . . . 2 7 4 . . . AOE 8 | . . . . . . 5 . . . 3 Classes Destroyed 17 | 1 5 . . . 1 8 2 . . . Worker 3 | . 1 1 . . . 1 . . . . Builder 3 | . . . . . 2 1 . . . . Tunneler 5 | 3 1 . . . . 1 . . . . Hauler 4 | . 2 . . . 1 1 . . . . Recycler 3 | . 1 . . . . 2 . . . . Mechanic 1 | . . . . . . 1 . . . . Watcher 1 | . . . . . . 1 . . . . Swarmer 18 | . 3 3 . . . 4 . 8 . . Grunt 35 | . 12 7 . . 3 9 2 . . 2 Brawler 2 | . . . . . . . 1 . . 1 Duelist 2 | . . . . . . 2 . . . . Sentry 3 | . . . . . . 3 . . . . Specialist 3 | . . . . . . 3 . . . . Hunter 3 | . . . . . . 2 . . . 1 Programmer 3 | . . . . . . 3 . . . . Heavy 2 | . . . . . . 2 . . . . Behemoth 1 | . . . . . . . 1 . . . Savage 1 | . . . . . . . 1 . . . Best Kill Streak 6 | 2 4 2 . . 3 6 3 4 . 4 Combat Bots Only 5 | . 4 2 . . 2 5 3 4 . 4 Max Kills in Single Turn 4 | 2 1 1 . . 2 4 1 2 . 2 Gunslinging . | . . . . . . . . . . . Exploded 4 | . . . . . . 4 . . . 1 Melee . | . . . . . . . . . . . Uniques/NPCs Destroyed . | . . . . . . . . . . . Combat | -11 -10 -10 -10 -9 -8 -7 -7 -7 -7 -6 -------- Run | Yrd Mat Min Exi Min Mat Fac Low Low Dat Pro Hostile Shots Fired 640 | . 86 100 . . 20 298 44 41 . 51 Missed 150 | . 24 17 . . 3 73 8 14 . 11 Hits 490 | . 62 83 . . 17 225 36 27 . 40 Melee 11 | . . . . . . 11 . . . . Projectile 479 | . 62 83 . . 17 214 36 27 . 40 AOE 2 | . . . . . . 2 . . . . Critical Strikes 18 | . 2 . . . 1 13 . . . 2 Actively Blocked 2 | . . . . . . . . . . 2 Part Disruptions 2 | . . . . . . 2 . . . . Damage Taken 7293 | . 735 968 . . 262 3435 773 408 . 712 Core 748 | . 72 84 . . 34 327 156 56 . 19 Absorbed by Shields 504 | . . . . . . 504 . . . . Redirected to Shielding 104 | . . . . . . . . 63 . 41 Regen/Repaired (Parts) 303 | . 84 . . . 127 92 . . . . Core Remaining (%) 76 | 100 . . . 37 93 . . . . . Volleys Fired 300 | 5 58 60 . . 21 116 16 17 . 7 Largest 3 | 2 2 2 . . 3 3 3 3 . 3 Hottest 243 | 90 90 40 . . 105 171 243 99 . 99 Shots Fired 717 | 10 116 105 . . 61 319 42 45 . 19 Gun 565 | 10 116 105 . . 40 218 20 42 . 14 Cannon 125 | . . . . . 20 83 22 . . . Launcher 22 | . . . . . 1 13 . 3 . 5 Special 5 | . . . . . . 5 . . . . Kinetic 518 | . 82 105 . . 40 215 20 42 . 14 Thermal 172 | 10 34 . . . 20 86 22 . . . Explosive 22 | . . . . . 1 13 . 3 . 5 Electromagnetic . | . . . . . . . . . . . Robot Hit Streak 15 | 5 11 12 . . 8 15 5 5 . 9 Robot Miss Streak 6 | 2 3 3 . . 5 6 4 6 . 2 Penetration Max 1 | . . . . . . 1 . . . 1 Secondary Targets 7 | . . 3 . . . 1 . 3 . . Max Gunslinging Chain 1 | . . 1 . . . 1 . 1 . . Shots Hit Robots 442 | 6 79 74 . . 33 200 19 18 . 13 Core Hits 173 | 3 34 21 . . 12 76 6 8 . 13 Critical Kills 6 | . . 1 . . . 1 1 2 . 1 Critical Parts Destroyed 4 | . 2 . . . . . 1 1 . . Critical Strikes 12 | . 4 1 . . . 1 2 3 . 1 Burn 2 | . 2 . . . . . . . . . Meltdown 1 | . . . . . . 1 . . . . Destroy 9 | . 2 1 . . . . 2 3 . 1 Melee Attacks . | . . . . . . . . . . . Impact . | . . . . . . . . . . . Slashing . | . . . . . . . . . . . Piercing . | . . . . . . . . . . . Sneak Attacks . | . . . . . . . . . . . Combat Hostiles . | . . . . . . . . . . . Follow-up Attacks . | . . . . . . . . . . . Damage Inflicted 10096 | 89 1012 909 . 14 614 5314 891 453 . 800 Guns 6163 | 84 981 901 . . 303 3022 177 453 . 242 Cannons 2676 | . . . . . 299 1665 712 . . . Explosions 1157 | . . . . . . 599 . . . 558 Melee . | . . . . . . . . . . . Ramming 100 | 5 31 8 . 14 12 28 2 . . . Kinetic 5739 | . 709 901 . . 303 2954 177 453 . 242 Thermal 3100 | 84 272 . . . 299 1733 712 . . . Explosive 1157 | . . . . . . 599 . . . 558 Electromagnetic . | . . . . . . . . . . . Impact . | . . . . . . . . . . . Slashing . | . . . . . . . . . . . Piercing . | . . . . . . . . . . . Highest Corruption 15 | . . . . . . 15 15 15 15 15 Average Corruption 9 | . . . . . . 4 15 15 15 15 Corruption Purged . | . . . . . . . . . . . Corruption Blocked . | . . . . . . . . . . . Effects 127 | . . . . . . 34 56 29 6 2 Message Errors 28 | . . . . . . 7 19 2 . . Matter Fused 30 | . . . . . . 5 11 12 2 . Heat Flow Errors 23 | . . . . . . 2 12 7 1 1 Energy Discharges 14 | . . . . . . 8 3 1 1 1 Data Loss (minor) 14 | . . . . . . 3 5 4 2 . Data Loss (major) 3 | . . . . . . 1 1 1 . . Misfires 9 | . . . . . . 5 3 1 . . Alerts 1 | . . . . . . 1 . . . . Weapon Failures 5 | . . . . . . 2 2 1 . . Overload Shots 33 | . . . . . . 12 21 . . . Effects 2 | . . . . . . . 2 . . . Energy Bleed 1 | . . . . . . . 1 . . . Short Circuit 1 | . . . . . . . 1 . . . Overflow Damage 79 | . . . . . . 22 34 . . 23 Projectiles 42 | . . . . . . 8 34 . . . Explosions 37 | . . . . . . 14 . . . 23 Melee . | . . . . . . . . . . . Knockbacks . | . . . . . . . . . . . Impact . | . . . . . . . . . . . Kinetic . | . . . . . . . . . . . Secondary . | . . . . . . . . . . . Self-Inflicted Damage 112 | . . . . . . 112 . . . . Shots 4 | . . . . . . 4 . . . . Rammed 18 | 1 7 3 . 2 1 3 1 . . . Targets Rammed 22 | 1 9 4 . 2 1 4 1 . . . Kicked . | . . . . . . . . . . . Crushed 4 | . 2 1 . . . 1 . . . . Highest Temperature 401 | 120 27 15 . . 273 257 346 275 252 401 Average Temperature 73 | 53 12 5 . . 95 53 88 75 127 286 Received Heat Transfer 1766 | . 345 447 . . 171 470 216 . . 117 Effects 2 | . . . . . . . . . . 2 Energy Bleed 1 | . . . . . . . . . . 1 Interference 1 | . . . . . . . . . . 1 Siege Activations . | . . . . . . . . . . . Martial Activations . | . . . . . . . . . . . Shielding Activations . | . . . . . . . . . . . Robots Disrupted . | . . . . . . . . . . . Combat Hostiles . | . . . . . . . . . . . Robots Corrupted . | . . . . . . . . . . . Combat Hostiles . | . . . . . . . . . . . Parts Fried . | . . . . . . . . . . . Impact Corruptions . | . . . . . . . . . . . Robots Melted 1 | . . . . . . 1 . . . . Combat Hostiles 1 | . . . . . . 1 . . . . Parts Melted 10 | . 5 . . . 2 2 1 . . . Heat Transferred 5000 | 223 867 . . . 481 2549 880 . . . Parts Sabotaged . | . . . . . . . . . . . Parts Stolen . | . . . . . . . . . . . Parts Stripped . | . . . . . . . . . . . Power Chain Reactions . | . . . . . . . . . . . Alert | -11 -10 -10 -10 -9 -8 -7 -7 -7 -7 -6 ------- Run | Yrd Mat Min Exi Min Mat Fac Low Low Dat Pro Maximum Alert Level 2 | . . . . . . 2 . . . . Low Security (%) 79 | 100 100 100 . 100 100 45 . . . . Level 1 13 | . . . . . . 36 . . . . Level 2 7 | . . . . . . 18 . . . . Level 3 . | . . . . . . . . . . . Level 4 . | . . . . . . . . . . . Level 5 . | . . . . . . . . . . . High Security . | . . . . . . . . . . . Max Security . | . . . . . . . . . . . Peak Influence 482 | 10 145 76 . 53 47 482 . . . . Initial . | . . . . . . . . . . . Average 105 | 2 46 29 . 5 7 227 . . . . Influence Increases 2665 | 15 473 391 . 53 131 1217 100 195 . 90 Destroy 0b10 Robot/C 1620 | . 300 260 . 40 60 640 80 160 . 80 Destroy 0b10 Robot/NC 120 | 15 25 5 . . 15 60 . . . . Destroy Leader 382 | . 74 50 . 10 12 186 20 20 . 10 Allied During Kill 36 | . . 5 . 3 . 28 . . . . Successful Hack 58 | . 29 11 . . 4 14 . . . . Disable Machine 180 | . 15 15 . . 30 120 . . . . Destroy Structure 134 | . . . . . 10 124 . . . . Lose Combat Pursuer 135 | . 30 45 . . . 45 . 15 . . Influence Decreases 2625 | 15 473 360 31 53 131 759 558 195 . 50 Entered New Map 201 | . . . 31 . . . 170 . . . Time Decay 2038 | 15 462 295 . 53 131 539 358 175 . 10 Lost Part 316 | . 11 65 . . . 150 30 20 . 40 Lost Ally 70 | . . . . . . 70 . . . . Squads Dispatched 19 | . 4 1 . . 3 11 . . . . Investigation 5 | . 3 . . . 2 . . . . . Extermination 4 | . . . . . . 4 . . . . Reinforcement 9 | . 1 . . . 1 7 . . . . Assault 1 | . . 1 . . . . . . . . Garrison . | . . . . . . . . . . . Intercept . | . . . . . . . . . . . Searches Triggered . | . . . . . . . . . . . Construction Impeded 2 | . . . . . . 2 . . . . Haulers Reinforced . | . . . . . . . . . . . Active Scanning Responses . | . . . . . . . . . . . Cargo Convoy Interrupts 1 | . . . . . . 1 . . . . Stealth | -11 -10 -10 -10 -9 -8 -7 -7 -7 -7 -6 --------- Run | Yrd Mat Min Exi Min Mat Fac Low Low Dat Pro Distress Signals 4 | . 1 . . . . 3 . . . . Communications Jammed . | . . . . . . . . . . . Distress Signals . | . . . . . . . . . . . Times Spotted 116 | . 30 16 . . 4 48 3 9 . 6 Peak Tracking Total 11 | . 7 4 . . 2 11 2 4 . 6 Tactical Retreats 7 | . 1 3 . . . 2 . 1 . . Traps | -11 -10 -10 -10 -9 -8 -7 -7 -7 -7 -6 ------- Run | Yrd Mat Min Exi Min Mat Fac Low Low Dat Pro Traps Triggered 10 | . 6 . . . . 4 . . . . Indirectly . | . . . . . . . . . . . Trap Hack Attempts . | . . . . . . . . . . . Triggered . | . . . . . . . . . . . Disarmed . | . . . . . . . . . . . Reprogrammed . | . . . . . . . . . . . Reused . | . . . . . . . . . . . Traps Extracted . | . . . . . . . . . . . Installed . | . . . . . . . . . . . Triggered . | . . . . . . . . . . . Machines | -11 -10 -10 -10 -9 -8 -7 -7 -7 -7 -6 ---------- Run | Yrd Mat Min Exi Min Mat Fac Low Low Dat Pro Machines Disabled 13 | . 2 1 . . 2 8 . . . . Max in Single Turn 4 | . 1 1 . . 1 4 . . . . Garrison Access 2 | . . . . . . 2 . . . . Machines Repaired . | . . . . . . . . . . . Machines Dismantled . | . . . . . . . . . . . Machines Sabotaged . | . . . . . . . . . . . Overloaded Fab Kills . | . . . . . . . . . . . Hacking | -11 -10 -10 -10 -9 -8 -7 -7 -7 -7 -6 --------- Run | Yrd Mat Min Exi Min Mat Fac Low Low Dat Pro Machines Accessed 28 | . 8 1 1 . 5 7 2 . 4 . Terminals 14 | . 7 1 . . 2 4 . . . . Fabricators . | . . . . . . . . . . . Repair Stations 3 | . 1 . . . 1 1 . . . . Recycling Units . | . . . . . . . . . . . Scanalyzers 2 | . . . . . 2 . . . . . Garrison Access 2 | . . . . . . 2 . . . . Total Hacks 94 | . 24 4 1 . 14 19 2 . 30 . Successful 68 | . 14 2 1 . 9 10 2 . 30 . Failed 26 | . 10 2 . . 5 9 . . . . Catastrophic 5 | . 1 . . . . 4 . . . . Database Lockouts . | . . . . . . . . . . . Manual 23 | . 13 2 1 . 2 5 . . . . Terminals 43 | . 20 4 . . 6 13 . . . . Fabricators . | . . . . . . . . . . . Repair Stations 8 | . 4 . . . 2 2 . . . . Recycling Units . | . . . . . . . . . . . Scanalyzers 6 | . . . . . 6 . . . . . Garrison Access 4 | . . . . . . 4 . . . . Terminal Hacks 47 | . 8 2 1 . . 4 2 . 30 . Record 11 | . . . . . . . . . 11 . Part Schematic 13 | . 1 . . . . . . . 12 . Robot Schematic 4 | . . . . . . . . . 4 . Robot Analysis 2 | . 1 1 . . . . . . . . Prototype ID Bank 8 | . 3 . . . . 2 . . 3 . Open Door 2 | . . . . . . . 2 . . . Open DSF 1 | . . . . . . 1 . . . . Emergency Access Points 1 | . . . . . . 1 . . . . Locate Traps 1 | . 1 . . . . . . . . . Transport Status 1 | . 1 . . . . . . . . . Zone Layout 2 | . 1 1 . . . . . . . . Proto ID Catalog 1 | . . . 1 . . . . . . . Fabricator Hacks . | . . . . . . . . . . . Repair Station Hacks 8 | . 4 . . . 2 2 . . . . Scan Component 4 | . 2 . . . 1 1 . . . . Repair 4 | . 2 . . . 1 1 . . . . Recycling Unit Hacks . | . . . . . . . . . . . Scanalyzer 6 | . . . . . 6 . . . . . Insert Component 2 | . . . . . 2 . . . . . Analyze 2 | . . . . . 2 . . . . . Retrieve Study 2 | . . . . . 2 . . . . . Garrison Access Hacks 2 | . . . . . . 2 . . . . Seal Access 2 | . . . . . . 2 . . . . Unauthorized Hacks 5 | . 2 . . . 1 2 . . . . Terminals 5 | . 2 . . . 1 2 . . . . Botnet 5 | . 2 . . . 1 2 . . . . Fabricators . | . . . . . . . . . . . Repair Stations . | . . . . . . . . . . . Recycling Units . | . . . . . . . . . . . Scanalyzers . | . . . . . . . . . . . Garrison Access . | . . . . . . . . . . . Data Cores Recovered . | . . . . . . . . . . . Used . | . . . . . . . . . . . Hacking Detections 17 | . 8 1 . . 4 4 . . . . Full Trace Events 2 | . . . . . 2 . . . . . Feedback Events . | . . . . . . . . . . . Feedback Blocked . | . . . . . . . . . . . Robot Schematics Acquired 4 | . . . . . . . . . 4 . Robots Built . | . . . . . . . . . . . Authchips . | . . . . . . . . . . . Time . | . . . . . . . . . . . Total Robot Build Rating . | . . . . . . . . . . . Part Schematics Acquired 15 | . 1 . . . 2 . . . 12 . Parts Built . | . . . . . . . . . . . Authchips . | . . . . . . . . . . . Time . | . . . . . . . . . . . Total Part Build Rating . | . . . . . . . . . . . Part Studies Acquired 2 | . . . . . 2 . . . . . Parts Repaired 4 | . 2 . . . 1 1 . . . . Time 167 | . 52 . . . 26 89 . . . . Parts Recycled . | . . . . . . . . . . . Recycled Matter . | . . . . . . . . . . . Retrieved Matter . | . . . . . . . . . . . Retrieved Components . | . . . . . . . . . . . Parts Scanalyzed 2 | . . . . . 2 . . . . . Part Schematics Acquired 2 | . . . . . 2 . . . . . Parts Damaged . | . . . . . . . . . . . Bothacking | -11 -10 -10 -10 -9 -8 -7 -7 -7 -7 -6 ------------ Run | Yrd Mat Min Exi Min Mat Fac Low Low Dat Pro Used RIF Installer . | . . . . . . . . . . . Robots Hacked . | . . . . . . . . . . . Non-combat . | . . . . . . . . . . . Combat . | . . . . . . . . . . . Robot Hacks Applied . | . . . . . . . . . . . Relay Couplers Released . | . . . . . . . . . . . Fabnet Peak Effective % . | . . . . . . . . . . . Robots Rewired . | . . . . . . . . . . . Allies Hacked . | . . . . . . . . . . . Hacks Repelled . | . . . . . . . . . . . Allies | -11 -10 -10 -10 -9 -8 -7 -7 -7 -7 -6 -------- Run | Yrd Mat Min Exi Min Mat Fac Low Low Dat Pro Total Allies 6 | . . 1 . . . 5 . . . . Largest Group 2 | . . 1 1 1 1 2 . . . . Highest-Rated Group 127 | . . 31 31 31 31 127 . . . . Highest-Rated Ally 108 | . . 31 31 31 31 108 . . . . Total Orders . | . . . . . . . . . . . Ally Attacks 54 | . . 15 . 7 2 30 . . . . Total Damage 1561 | . . 299 . 82 21 1159 . . . . Kills 14 | . . 3 . 2 . 9 . . . . Allies Corrupted . | . . . . . . . . . . . Allies Melted . | . . . . . . . . . . . Field Lobotomies 5 | . . . . . . 5 . . . . Intel | -11 -10 -10 -10 -9 -8 -7 -7 -7 -7 -6 ------- Run | Yrd Mat Min Exi Min Mat Fac Low Low Dat Pro Active Infowar (turns) 1640 | 6 49 . . . . 1520 64 1 . . Optics 64 | . . . . . . . 64 . . . Structural 1520 | . . . . . . 1520 . . . . Seismic 55 | 6 49 . . . . . . . . . Jamming 1 | . . . . . . . . 1 . . Robot Analysis Total 2 | . 1 1 . . . . . . . . Derelict Logs Recovered 4 | . . 2 . 1 . . . 1 . . Drone Launches . | . . . . . . . . . . . Drone Recoveries . | . . . . . . . . . . . Exploration | -11 -10 -10 -10 -9 -8 -7 -7 -7 -7 -6 ------------- Run | Yrd Mat Min Exi Min Mat Fac Low Low Dat Pro Turns Passed 8263 | 68 1568 819 366 422 663 2208 1215 763 146 25 Spaces Moved 4344 | 22 779 370 229 262 338 1156 636 458 94 . Core 2 | . . . . . . 2 . . . . Treads 4010 | 22 779 370 229 262 338 822 636 458 94 . Legs . | . . . . . . . . . . . Wheels 332 | . . . . . . 332 . . . . Hover . | . . . . . . . . . . . Flight . | . . . . . . . . . . . Fastest Speed 90 | 160 160 160 160 160 155 90 153 150 152 . Average Speed 157 | 160 160 160 160 160 158 144 178 151 152 . Slowest Speed 700 | 160 160 160 160 160 160 700 241 155 152 . Overloaded Moves . | . . . . . . . . . . . Propulsion Burnouts . | . . . . . . . . . . . Robots Hopped . | . . . . . . . . . . . Potential Cave-ins . | . . . . . . . . . . . Cave-ins Triggered . | . . . . . . . . . . . Exploration Rate (%) 50 | 2 95 85 61 56 26 30 63 59 69 5 Regions Visited 10 Branch Regions 7 Pre-discovered Areas 4 | . . 1 . 1 . . . 1 1 . Known Exits Taken . | . . . . . . . . . . . Unknown Exits Taken 10 | 1 1 1 1 1 1 1 1 1 1 . Scrap Searched 11 | . . 1 . . . . 8 2 . . Spaces Dug 72 | . . . . . . 58 . 14 . . Terrain Destroyed 245 | . . . . . 10 148 14 39 . 34 Melee . | . . . . . . . . . . . Projectile 77 | . . . . . 1 48 14 9 . 5 AOE 168 | . . . . . 9 100 . 30 . 29 Terrain Rammed . | . . . . . . . . . . . Walls Destroyed . | . . . . . . . . . . . Machines Disabled . | . . . . . . . . . . . Actions | -11 -10 -10 -10 -9 -8 -7 -7 -7 -7 -6 --------- Run | Yrd Mat Min Exi Min Mat Fac Low Low Dat Pro Total 5174 | 48 979 492 229 264 422 1463 680 489 98 10 Wait 271 | 9 94 48 . . 43 73 1 3 . . Move 4334 | 21 778 369 228 261 337 1155 635 457 93 . Hop . | . . . . . . . . . . . Pick Up 53 | . 12 2 1 1 5 23 8 1 . . Fast Attach 41 | 1 6 . . . 3 21 5 3 2 . Attach 32 | 3 2 7 . . 2 12 3 1 . 2 Detach 18 | 3 3 . . . . 8 3 . 1 . Swap 49 | . 7 1 . . 7 28 2 3 . 1 Drop 53 | 5 10 1 . . 3 23 6 3 2 . Fire 300 | 5 58 60 . . 21 116 16 17 . 7 Melee . | . . . . . . . . . . . Ram . | . . . . . . . . . . . Kick . | . . . . . . . . . . . Crush 22 | 1 9 4 . 2 1 4 1 . . . Escape Stasis . | . . . . . . . . . . . Rewire 1 | . . . . . . . . 1 . . Trap . | . . . . . . . . . . . Miscellaneous . | . . . . . . . . . . . Route ------- -11/Scrapyard -10/Materials (discovered 5 exits: [*Mat x3] / *Min x2) -10/Mines (discovered 3 exits: [*Mat x2] / *Exi) -10/Exiles -9/Mines -8/Materials -7/Factory -7/Lower Caves -7/Lower Caves (discovered 2 exits: [*Fac] / *Dat) -7/Data Miner -6/Proximity Caves History --------- Turn | Location | Event 9 | -11/Scrapyard | Discovered new exit (range 3) 69 | -11/Scrapyard | Entered Materials 307 | -10/Materials | Build established: Mutant 389 | -10/Materials | Discovered new exit (range 3) 411 | -10/Materials | Discovered new exit (range 15) 458 | -10/Materials | Discovered new exit (range 11) 811 | -10/Materials | Discovered new exit (range 5) 958 | -10/Materials | Discovered new exit (range 3) 1116 | -10/Materials | Repaired Lgt. Treads 1143 | -10/Materials | Repaired Lgt. Treads 1637 | -10/Materials | Entered Mines 1745 | -10/Mines | Core integrity fell below 50% 1891 | -10/Mines | Lost 3 parts (1n2w) 1911 | -10/Mines | Learned location of Zion (-6) 2204 | -10/Mines | Discovered new exit (range 8) 2222 | -10/Mines | Discovered new exit (range 9) 2244 | -10/Mines | Learned Materials terminal intel 2245 | -10/Mines | Met a Derelict testing a Signal Generator 2450 | -10/Mines | Deemed a non-threat by the Exiles lab entrance 2450 | -10/Mines | Discovered new exit (range 5) 2456 | -10/Mines | Entered Exiles 2456 | -10/Exiles | Accompanied by 1 ally 2495 | -10/Exiles | Met 8R-AWN 2522 | -10/Exiles | Met EX-HEX 2567 | -10/Exiles | Met EX-BIN 2591 | -10/Exiles | Aligned with FarCom system 2592 | -10/Exiles | Given EX-Vault access code 2629 | -10/Exiles | Opened EX-Vault 2639 | -10/Exiles | Found Field Lobotomy Kit 2672 | -10/Exiles | Warned to stay clear of 0b10 Research branches 2721 | -10/Exiles | Met EX-DEC 2808 | -10/Exiles | Discovered new exit (range 10) 2822 | -10/Exiles | Left Exiles lab with Field Lobotomy Kit 2822 | -10/Exiles | Entered Mines 2822 | -9/Mines | Accompanied by 1 ally 2823 | -9/Mines | Assembled infested the area 2828 | -9/Mines | Assisted by a Guerilla fighting off Assembled 3157 | -9/Mines | Received a Rocket Launcher from a helpful Derelict 3209 | -9/Mines | Discovered new exit (range 5) 3244 | -9/Mines | Entered Materials 3244 | -8/Materials | Accompanied by 1 ally 3244 | -8/Materials | Evolved 4 slots: Propulsion x2, Utility x1, Weapon x1 3245 | -8/Materials | Loaded intel: 12 terminal locations 3531 | -8/Materials | Repaired Lgt. Treads+ 3714 | -8/Materials | Discovered new exit (range 4) 3723 | -8/Materials | Build established: Skirmisher 3907 | -8/Materials | Entered Factory 3907 | -7/Factory | Evolved 2 slots: Utility x2 4333 | -7/Factory | Build established: Scavenger-Tank 5422 | -7/Factory | Assimilated A-27 Freighter with FLK Orb 5423 | -7/Factory | Cargo convoy interrupted 5466 | -7/Factory | Assimilated H-61 Shepherd with FLK Orb 5469 | -7/Factory | Assimilated H-55 Commando with FLK Orb 5472 | -7/Factory | Assimilated P-60 Hacker with FLK Orb 5475 | -7/Factory | Assimilated P-60 Hacker with FLK Orb 5499 | -7/Factory | Lost 6 parts (4n1u1w) 5562 | -7/Factory | Found PL-3XN's Ring of Power 5796 | -7/Factory | Lost 4 parts (2n2u) 5918 | -7/Factory | Repaired Cld. Fission Core 5940 | -7/Factory | Discovered new exit (range 15) 6000 | -7/Factory | System corruption reached 10% 6101 | -7/Factory | Lost 4 parts (2n2u) 6115 | -7/Factory | Entered Lower Caves 6116 | -7/Lower Caves | Encountered a Warlord checkpoint 6125 | -7/Lower Caves | Spotted B-75 Beast 6140 | -7/Lower Caves | Core integrity fell below 50% 6159 | -7/Lower Caves | Destroyed B-75 Beast 6714 | -7/Lower Caves | Found DCF Scrap (10 items) 6824 | -7/Lower Caves | Found Prototype Device 7013 | -7/Lower Caves | Build established: Derelict-Gunner 7240 | -7/Lower Caves | Discovered new exit (range 11) 7330 | -7/Lower Caves | Entered another Lower Caves area 7368 | -7/Lower Caves | Discovered new exit (range 9) 7511 | -7/Lower Caves | Encountered a Warlord checkpoint 7734 | -7/Lower Caves | Build established: Derelict-Tank 7899 | -7/Lower Caves | Discovered new exit (range 11) 8093 | -7/Lower Caves | Entered Data Miner 8095 | -7/Data Miner | Discovered new exit (range 6) 8124 | -7/Data Miner | Met Data Miner 8154 | -7/Data Miner | Learned location of Section 7 (-2) 8154 | -7/Data Miner | Acquired the access code to Warlord's prototype stash 8179 | -7/Data Miner | Received God Mode back door access code from Data Miner 8239 | -7/Data Miner | Entered Proximity Caves 8264 | -6/Proximity Caves | Self-destructed Last Messages --------------- 08257_ G-50 Soldier suffers critical hit (Destroy). 08257_ G-50 Soldier destroyed. 08257_ Slug penetrates Earth. 08257_ G-50 Soldier destroyed. 08258_ Slug penetrates Wall. 08258_ Penetrated by Slug. 08258_ Imp. KE Penetrator destroyed. 08259_ The unstable cave ceiling collapses. 08260_ Flexi-carbon Leg fries itself beyond repair. 08261_ System corrupted: Energy discharge (-105). 08261_ Slug penetrates H-66 Slayer. 08261_ Slug penetrates Wall. 08261_ Penetrated by Slug. 08261_ Med. Treads destroyed. 08262_ Rocket Launcher+ destroyed. 08263_ Overheating: Energy bleed (-65). 08263_ The unstable cave ceiling collapses. 08264_ Overheating: System interference. 08264_ Imp. KE Penetrator temporarily disabled. 08264_ Med. Treads destroyed. Map ----- +----------------------------------------------------+ | ?????????????????????????????????????????????????? | | ?????????????????????????????????????????????????? | | ?????????????????????????????????????????????????? | | ?????????????????????????????????????????????????? | | ?????????????????????????????????????????????????? | | ?????????????????????????????????????????????????? | | ?????????????????????????????????????????????????? | | ?????????????????????????????????????????????????? | | ?????????????????????????????????????????????????? | | ?????????????????????????????????????????????????? | | ?????????????????????????????????????????????????? | | ?????????????????????????????????????????????????? | | ?????????????????????????????????????????????????? | | ?????????????????????????????##???#??????????????? | | ???????????????????????###??# ###;###????????????? | | ??????????????????????? #? # # #????????????? | | ??????????????????????? #???????????? | | ???????????????????????# #???????????? | | ???????????????????????# # ##???????????? | | ???????????????????????# # h%% # $;#???????????? | | ????????????????????#### * ##???????????? | | ??????????????????### # ????????????? | | ?????????????????## # #??????????????? | | ??????????????# # #### #?????????? | | ??????????????# g #?????????? | | ??????????????# @ #?????????? | | ???????????????# #???????????????? | | ???????????????####### #???????????????? | | ?????????????????????#### #???????????????? | | ????????????????????????## ##???????????????? | | ?????????????????????????? #????????????????? | | ?????????????????????????? ## ##????????????????? | | ?????????????????????????? #?##?????????????????? | | ?????????????????????????? #????????????????????? | | ?????????????????????????? #????????????????????? | | ?????????????????????????? ????????????????????? | | ?????????????????????????? ????????????????????? | | ??????????????????????????? ????????????????????? | | ??????????????????????????? ????????????????????? | | ??????????????????????????? ???????????????????? | | ??????????????????????????? ?????????????????????? | | ?????????????????????????????????????????????????? | | ?????????????????????????????????????????????????? | | ?????????????????????????????????????????????????? | | ?????????????????????????????????????????????????? | | ?????????????????????????????????????????????????? | | ?????????????????????????????????????????????????? | | ?????????????????????????????????????????????????? | | ?????????????????????????????????????????????????? | | ?????????????????????????????????????????????????? | +----------------------------------------------------+ Best States ------------- Heat Dissipation 70 Energy Generation 21 Energy Capacity 350 Matter Stores 300 Matter Capacity 300 Sight Range 20 Terrain Scan Density 10 Armor Coverage 450 Weapon Shielding 66 Evasion (%) 42 Targeting Accuracy 5 Armor Integrity Analysis 30 Recoil Reduction 4 Kinecelleration 30 Item Schematics ----------------- Hcp. Storage Unit | -10/Materials | Hacked Rocket Launcher | -8/Materials | Scanalyzed Structural Scanner | -8/Materials | Scanalyzed Combat Drone Bay | -7/Data Miner | Free Lgt. Regenerative Plating | -7/Data Miner | Free Exp. Utility Shielding | -7/Data Miner | Free Biomechanical Wings | -7/Data Miner | Free Cld. Plasma Cannon | -7/Data Miner | Free Field Propulsion Drive | -7/Data Miner | Free Imp. Thermal Shield | -7/Data Miner | Free KE Penetrator | -7/Data Miner | Free Adv. Shield Generator | -7/Data Miner | Free Lyr. Heavy Armor Plating | -7/Data Miner | Free Adv. Power Amplifier | -7/Data Miner | Free Matter Neutralizer | -7/Data Miner | Free Robot Schematics ------------------ S-27 Virus | -7/Data Miner | Free M-22 Extractor | -7/Data Miner | Free G-47 Trooper | -7/Data Miner | Free B-48 Gladiator | -7/Data Miner | Free Fabricated ------------ Nothing Repaired ---------- Lgt. Treads | 56% | -10/Materials Lgt. Treads | 83% | -10/Materials Lgt. Treads | 9% | -8/Materials Cld. Fission Core | 38% | -7/Factory Studied --------- Lgt. Treads | -8/Materials | Hacked Rocket Launcher | -8/Materials | Hacked Alien Tech Used ----------------- None Achievements -------------- None Challenges ------------ None Game ------ Seed MultinovaVortexFlightbrick Manual? 0 Play Time 01:06:32 Cumulative 87.0 hours Start 2026.03.31 @ 20:11:05 End 2026.03.31 @ 21:28:15 Sessions 1 Manual Loads 0 Difficulty Rogue Special Mode None Game No. 78 Rogue 78 Adventurer 0 Explorer 0 Win Type - Total 4 Types 2/0/1/1/0/0/0/0/0/0 Lore% 53 Gallery% 44 Achievement% 40 Wizard Run 0 Options --------- Layout 0 ASCII 0 Keyboard 1 Movement Arrows Keybinds 0 Fullscreen 2 Font 18/X11Bold Map View 76x50 Zoom Use 0% Tactical HUD 1 Map Filters NONE Filters NONE Steam 1 RUN: 46a43763-2fa3-44c2-aa85-e98789ac4a13